fUSD/lending_fUSD_20240303
["ID","MTS","AMOUNT","RATE_DAILY","PERIOD"]
[316289005,1709424651717,-628.88,0.00021479,2]
[316289006,1709424651726,-500.0,0.00021479,2]
[316289007,1709424651736,-500.0,0.00021479,2]
[316289008,1709424651745,-500.0,0.00021479,2]
[316289009,1709424651754,-500.0,0.00021479,2]
[316289010,1709424651764,-500.0,0.00021479,2]
[316289011,1709424651773,-500.0,0.00021479,2]
[316289012,1709424651784,-500.0,0.00021479,2]
[316289013,1709424651794,-500.0,0.00021479,2]
[316289014,1709424651803,-500.0,0.00021479,2]
[316289015,1709424651813,-500.0,0.00021479,2]
[316289016,1709424651822,-500.0,0.00021479,2]
[316289017,1709424651831,-500.0,0.00021479,2]
[316289018,1709424651840,-500.0,0.00021479,2]
[316289019,1709424651850,-500.0,0.00021479,2]
[316289020,1709424651860,-500.0,0.00021479,2]
[316289021,1709424651870,-500.0,0.00021479,2]
[316289022,1709424651880,-500.0,0.00021479,2]
[316289023,1709424651889,-500.0,0.00021479,2]
[316289024,1709424651899,-500.0,0.00021479,2]
[316289025,1709424651909,-500.0,0.00021479,2]
[316289026,1709424651919,-500.0,0.00021479,2]
[316289027,1709424651930,-500.0,0.00021479,2]
[316289028,1709424651940,-500.0,0.00021479,2]
[316289029,1709424651950,-500.0,0.00021479,2]
[316289030,1709424651959,-500.0,0.00021479,2]
[316289031,1709424651969,-582.28,0.00021479,2]
[316289032,1709424651979,-500.0,0.00021479,2]
[316289033,1709424651988,-500.0,0.00021479,2]
[316289034,1709424651998,-500.0,0.00021479,2]
[316289035,1709424652008,-500.0,0.00021479,2]
[316289036,1709424652018,-500.0,0.00021479,2]
[316289037,1709424652028,-500.0,0.00021479,2]
[316289038,1709424652037,-500.0,0.00021479,2]
[316289039,1709424652047,-500.0,0.00021479,2]
[316289040,1709424652057,-500.0,0.00021479,2]
[316289041,1709424652066,-500.0,0.00021479,2]
[316289042,1709424652075,-500.0,0.00021479,2]
[316289043,1709424652085,-500.0,0.00021479,2]
[316289044,1709424652094,-500.0,0.00021479,2]
[316289045,1709424652104,-241.37249357,0.00021479,2]
[316289046,1709424652113,-500.0,0.00021479,2]
[316289047,1709424652122,-500.0,0.00021479,2]
[316289048,1709424652132,-500.0,0.00021479,2]
[316289049,1709424652141,-500.0,0.00021479,2]
[316289050,1709424652151,-501.83374621,0.00021479,2]
[316289051,1709424652161,-500.0,0.00021479,2]
[316289052,1709424652170,-500.0,0.00021479,2]
[316289053,1709424652181,-500.0,0.00021479,2]
[316289054,1709424652190,-500.0,0.00021479,2]
[316289055,1709424652200,-500.0,0.00021479,2]
[316289056,1709424652210,-500.0,0.00021479,2]
[316289057,1709424652219,-516.23,0.00021479,2]
[316289058,1709424652229,-500.0,0.00021479,2]
[316289059,1709424652239,-581.11766111,0.00021479,2]
[316289060,1709424652248,-680.43,0.00021479,2]
[316289061,1709424652258,-701.53,0.00021479,2]
[316289062,1709424652268,-500.0,0.00021479,2]
[316289063,1709424652278,-500.0,0.00021479,2]
[316289064,1709424652287,-500.0,0.00021479,2]
[316289065,1709424652296,-500.0,0.00021479,2]
[316289066,1709424652306,-511.98,0.00021479,2]
[316289067,1709424652315,-500.0,0.00021479,2]
[316289068,1709424652325,-500.0,0.00021479,2]
[316289069,1709424652335,-500.0,0.00021479,2]
[316289070,1709424652344,-500.0,0.00021479,2]
[316289071,1709424652354,-500.0,0.00021479,2]
[316289072,1709424652364,-500.0,0.00021479,2]
[316289073,1709424652373,-692.28,0.00021479,2]
[316289074,1709424652382,-500.0,0.00021479,2]
[316289075,1709424652392,-500.0,0.00021479,2]
[316289076,1709424652401,-554.21,0.00021479,2]
[316289077,1709424652411,-620.58,0.00021479,2]
[316289078,1709424652420,-500.0,0.00021479,2]
[316289079,1709424652431,-575.67,0.00021479,2]
[316289080,1709424652440,-500.0,0.00021479,2]
[316289081,1709424652449,-500.0,0.00021479,2]
[316289082,1709424652458,-500.0,0.00021479,2]
[316289083,1709424652468,-500.0,0.00021479,2]
[316289084,1709424652477,-500.0,0.00021479,2]
[316289085,1709424652487,-669.47,0.00021479,2]
[316289086,1709424652496,-500.0,0.00021479,2]
[316289087,1709424652505,-500.0,0.00021479,2]
[316289088,1709424652515,-500.0,0.00021479,2]
[316289089,1709424652524,-500.0,0.00021479,2]
[316289090,1709424652533,-500.0,0.00021479,2]
[316289091,1709424652543,-500.0,0.00021479,2]
[316289092,1709424652552,-500.0,0.00021479,2]
[316289093,1709424652561,-500.0,0.00021479,2]
[316289094,1709424652571,-500.0,0.00021479,2]
[316289095,1709424652580,-500.0,0.00021479,2]
[316289096,1709424652590,-500.0,0.00021479,2]
[316289097,1709424652599,-758.32,0.00021479,2]
[316289098,1709424652608,-500.0,0.00021479,2]
[316289099,1709424652618,-898.66,0.00021479,2]
[316289100,1709424652627,-500.0,0.00021479,2]
[316289101,1709424652636,-762.81,0.00021479,2]
[316289102,1709424652646,-500.0,0.00021479,2]
[316289103,1709424652655,-500.0,0.00021479,2]
[316289104,1709424652664,-500.0,0.00021479,2]
[316289105,1709424652673,-586.31,0.00021479,2]
[316289106,1709424652684,-500.0,0.00021479,2]
[316289107,1709424652694,-248.94308748,0.00021479,2]
[316289108,1709424652703,-500.0,0.00021479,2]
[316289109,1709424652713,-693.95,0.00021479,2]
[316289110,1709424652722,-500.0,0.00021479,2]
[316289111,1709424652731,-500.0,0.00021479,2]
[316289112,1709424652741,-538.1,0.00021479,2]
[316289113,1709424652751,-500.0,0.00021479,2]
[316289114,1709424652761,-500.0,0.00021479,2]
[316289115,1709424652771,-500.0,0.00021479,2]
[316289116,1709424652782,-500.0,0.00021479,2]
[316289117,1709424652792,-500.0,0.00021479,2]
[316289118,1709424652801,-500.0,0.00021479,2]
[316289119,1709424652811,-500.0,0.00021479,2]
[316289120,1709424652821,-733.64,0.00021479,2]
[316289121,1709424652830,-500.0,0.00021479,2]
[316289122,1709424652839,-500.0,0.00021479,2]
[316289123,1709424652849,-500.0,0.00021479,2]
[316289124,1709424652858,-236.7041614,0.00021479,2]
[316289125,1709424652868,-500.0,0.00021479,2]
[316289126,1709424652878,-500.0,0.00021479,2]
[316289127,1709424652888,-500.0,0.00021479,2]
[316289128,1709424652897,-500.0,0.00021479,2]
[316289129,1709424652906,-500.0,0.00021479,2]
[316289130,1709424652915,-500.0,0.00021479,2]
[316289131,1709424652927,-500.0,0.00021479,2]
[316289132,1709424652937,-500.0,0.00021479,2]
[316289133,1709424652946,-675.61,0.00021479,2]
[316289134,1709424652956,-500.0,0.00021479,2]
[316289135,1709424652965,-500.0,0.00021479,2]
[316289136,1709424652974,-500.0,0.00021479,2]
[316289137,1709424652984,-500.0,0.00021479,2]
[316289138,1709424652993,-500.0,0.00021479,2]
[316289139,1709424653002,-500.0,0.00021479,2]
[316289140,1709424653012,-500.0,0.00021479,2]
[316289141,1709424653021,-500.0,0.00021479,2]
[316289142,1709424653031,-500.0,0.00021479,2]
[316289143,1709424653041,-660.29,0.00021479,2]
[316289144,1709424653050,-500.0,0.00021479,2]
[316289145,1709424653060,-500.0,0.00021479,2]
[316289146,1709424653069,-500.0,0.00021479,2]
[316289147,1709424653079,-500.0,0.00021479,2]
[316289148,1709424653088,-500.0,0.00021479,2]
[316289149,1709424653097,-500.0,0.00021479,2]
[316289150,1709424653106,-500.0,0.00021479,2]
[316289151,1709424653116,-500.0,0.00021479,2]
[316289152,1709424653125,-500.0,0.00021479,2]
[316289153,1709424653135,-500.0,0.00021479,2]
[316289154,1709424653144,-500.0,0.00021479,2]
[316289155,1709424653154,-500.0,0.00021479,2]
[316289156,1709424653163,-500.0,0.00021479,2]
[316289157,1709424653173,-500.0,0.00021479,2]
[316289158,1709424653184,-500.0,0.00021479,2]
[316289159,1709424653193,-640.48,0.00021479,2]
[316289160,1709424653202,-500.0,0.00021479,2]
[316289161,1709424653212,-500.0,0.00021479,2]
[316289162,1709424653222,-531.94,0.00021479,2]
[316289163,1709424653231,-500.0,0.00021479,2]
[316289164,1709424653240,-458.52258105,0.00021479,2]
[316289165,1709424653250,-500.0,0.00021479,2]
[316289166,1709424653259,-500.0,0.00021479,2]
[316289167,1709424653268,-635.89,0.00021479,2]
[316289168,1709424653277,-500.0,0.00021479,2]
[316289169,1709424653286,-500.0,0.00021479,2]
[316289170,1709424653296,-500.0,0.00021479,2]
[316289171,1709424653305,-500.0,0.00021479,2]
[316289172,1709424653315,-500.0,0.00021479,2]
[316289173,1709424653324,-500.0,0.00021479,2]
[316289174,1709424653333,-566.59,0.00021479,2]
[316289175,1709424653343,-547.7178642,0.00021479,2]
[316289176,1709424653353,-500.0,0.00021479,2]
[316289177,1709424653362,-500.0,0.00021479,2]
[316289178,1709424653372,-500.0,0.00021479,2]
[316289179,1709424653381,-500.0,0.00021479,2]
[316289180,1709424653390,-747.4,0.00021479,2]
[316289181,1709424653399,-500.0,0.00021479,2]
[316289182,1709424653408,-500.0,0.00021479,2]
[316289183,1709424653417,-747.48,0.00021479,2]
[316289184,1709424653428,-500.0,0.00021479,2]
[316289185,1709424653437,-534.85,0.00021479,2]
[316289186,1709424653447,-599.49,0.00021479,2]
[316289187,1709424653456,-500.0,0.00021479,2]
[316289188,1709424653466,-500.0,0.00021479,2]
[316289189,1709424653475,-500.0,0.00021479,2]
[316289190,1709424653484,-500.0,0.00021479,2]
[316289191,1709424653493,-500.0,0.00021479,2]
[316289192,1709424653503,-500.0,0.00021479,2]
[316289193,1709424653512,-500.0,0.00021479,2]
[316289194,1709424653522,-500.0,0.00021479,2]
[316289195,1709424653531,-702.78,0.00021479,2]
[316289196,1709424653540,-520.15,0.00021479,2]
[316289197,1709424653549,-500.0,0.00021479,2]
[316289198,1709424653558,-500.0,0.00021479,2]
[316289199,1709424653567,-402.26002618,0.00021479,2]
[316289200,1709424653577,-500.0,0.00021479,2]
[316289201,1709424653586,-544.59,0.00021479,2]
[316289202,1709424653595,-500.0,0.00021479,2]
[316289203,1709424653604,-500.0,0.00021479,2]
[316289204,1709424653613,-591.47,0.00021479,2]
[316289205,1709424653623,-500.0,0.00021479,2]
[316289206,1709424653632,-500.0,0.00021479,2]
[316289207,1709424653640,-500.0,0.00021479,2]
[316289208,1709424653649,-562.14,0.00021479,2]
[316289209,1709424653658,-500.0,0.00021479,2]
[316289210,1709424653667,-649.9,0.00021479,2]
[316289211,1709424653676,-521.57,0.00021479,2]
[316289212,1709424653687,-707.89,0.00021479,2]
[316289213,1709424653698,-500.0,0.00021479,2]
[316289214,1709424653791,-500.0,0.00021479,2]
[316289215,1709424653800,-731.26,0.00021479,2]
[316289216,1709424653810,-500.0,0.00021479,2]
[316289217,1709424653819,-500.0,0.00021479,2]
[316289218,1709424653828,-500.0,0.00021479,2]
[316289219,1709424653837,-500.0,0.00021479,2]
[316289220,1709424653846,-774.62,0.00021479,2]
[316289221,1709424653856,-500.0,0.00021479,2]
[316289222,1709424653866,-500.0,0.00021479,2]
[316289223,1709424653875,-514.69862222,0.00021479,2]
[316289224,1709424653884,-500.0,0.00021479,2]
[316289225,1709424653893,-500.0,0.00021479,2]
[316289226,1709424653903,-500.0,0.00021479,2]
[316289227,1709424653912,-500.0,0.00021479,2]
[316289228,1709424653921,-500.0,0.00021479,2]
[316289229,1709424653932,-500.0,0.00021479,2]
[316289230,1709424653941,-500.0,0.00021479,2]
[316289231,1709424653950,-707.07,0.00021479,2]
[316289232,1709424653960,-500.0,0.00021479,2]
[316289233,1709424653969,-500.0,0.00021479,2]
[316289234,1709424653978,-500.0,0.00021479,2]
[316289235,1709424653986,-500.0,0.00021479,2]
[316289236,1709424653995,-500.0,0.00021479,2]
[316289237,1709424654004,-817.55,0.00021479,2]
[316289238,1709424654013,-500.0,0.00021479,2]
[316289239,1709424654022,-500.0,0.00021479,2]
[316289240,1709424654031,-578.43,0.00021479,2]
[316289241,1709424654041,-835.51,0.00021479,2]
[316289242,1709424654050,-500.0,0.00021479,2]
[316289243,1709424654059,-500.0,0.00021479,2]
[316289244,1709424654068,-500.0,0.00021479,2]
[316289245,1709424654077,-808.21,0.00021479,2]
[316289246,1709424654086,-500.0,0.00021479,2]
[316289247,1709424654095,-500.0,0.00021479,2]
[316289248,1709424654104,-500.0,0.00021479,2]
[316289249,1709424654114,-500.0,0.00021479,2]
[316289250,1709424654123,-1063.6,0.00021479,2]
[316289251,1709424654133,-500.0,0.00021479,2]
[316289252,1709424654142,-500.0,0.00021479,2]
[316289253,1709424654151,-500.0,0.00021479,2]
[316289254,1709424654160,-500.0,0.00021479,2]
[316289255,1709424654169,-500.0,0.00021479,2]
[316289256,1709424654178,-722.72,0.00021479,2]
[316289257,1709424654187,-500.0,0.00021479,2]
[316289258,1709424654196,-500.0,0.00021479,2]
[316289259,1709424654205,-695.57,0.00021479,2]
[316289260,1709424654215,-734.0,0.00021479,2]
[316289261,1709424654224,-500.0,0.00021479,2]
[316289262,1709424654233,-942.96,0.00021479,2]
[316289263,1709424654242,-514.04,0.00021479,2]
[316289264,1709424654251,-564.37,0.00021479,2]
[316289265,1709424654260,-500.0,0.00021479,2]
[316289266,1709424654269,-1298.52,0.00021479,2]
[316289267,1709424654279,-500.0,0.00021479,2]
[316289268,1709424654288,-500.0,0.00021479,2]
[316289269,1709424654297,-500.0,0.00021479,2]
[316289270,1709424654306,-1123.15,0.00021479,2]
[316289271,1709424654315,-804.8,0.00021479,2]
[316289272,1709424654324,-500.0,0.00021479,2]
[316289273,1709424654333,-500.0,0.00021479,2]
[316289274,1709424654343,-500.0,0.00021479,2]
[316289275,1709424654352,-500.0,0.00021479,2]
[316289276,1709424654362,-500.0,0.00021479,2]
[316289277,1709424654371,-500.0,0.00021479,2]
[316289278,1709424654380,-500.0,0.00021479,2]
[316289279,1709424654390,-500.0,0.00021479,2]
[316289280,1709424654399,-500.0,0.00021479,2]
[316289281,1709424654408,-500.0,0.00021479,2]
[316289282,1709424654417,-860.0,0.00021479,2]
[316289283,1709424654427,-782.59,0.00021479,2]
[316289284,1709424654438,-500.0,0.00021479,2]
[316289285,1709424654447,-614.67414688,0.00021479,2]
[316289286,1709424654456,-500.0,0.00021479,2]
[316289287,1709424654465,-500.0,0.00021479,2]
[316289288,1709424654474,-500.0,0.00021479,2]
[316289289,1709424654483,-500.0,0.00021479,2]
[316289290,1709424654492,-500.0,0.00021479,2]
[316289291,1709424654501,-304.41809027,0.00021479,2]
[316289292,1709424654510,-500.0,0.00021479,2]
[316289293,1709424654519,-500.0,0.00021479,2]
[316289294,1709424654527,-500.0,0.00021479,2]
[316289295,1709424654536,-500.0,0.00021479,2]
[316289296,1709424654546,-500.0,0.00021479,2]
[316289297,1709424654554,-546.37,0.00021479,2]
[316289298,1709424654563,-500.0,0.00021479,2]
[316289299,1709424654571,-500.0,0.00021479,2]
[316289300,1709424654580,-1139.87,0.00021479,2]
[316289301,1709424654589,-500.0,0.00021479,2]
[316289302,1709424654599,-500.0,0.00021479,2]
[316289303,1709424654608,-500.0,0.00021479,2]
[316289304,1709424654617,-500.0,0.00021479,2]
[316289305,1709424654626,-500.0,0.00021479,2]
[316289306,1709424654635,-641.77,0.00021479,2]
[316289307,1709424654644,-854.19,0.00021479,2]
[316289308,1709424654653,-500.0,0.00021479,2]
[316289309,1709424654662,-500.0,0.00021479,2]
[316289310,1709424654672,-500.0,0.00021479,2]
[316289311,1709424654681,-500.0,0.00021479,2]
[316289312,1709424654690,-955.69,0.00021479,2]
[316289313,1709424654700,-500.0,0.00021479,2]
[316289314,1709424654709,-500.0,0.00021479,2]
[316289315,1709424654718,-500.0,0.00021479,2]
[316289316,1709424654727,-371.46805829,0.00021479,2]
[316289317,1709424654736,-500.0,0.00021479,2]
[316289318,1709424654746,-509.65194872,0.00021479,2]
[316289319,1709424654755,-500.0,0.00021479,2]
[316289320,1709424654765,-500.0,0.00021479,2]
[316289321,1709424654775,-500.0,0.00021479,2]
[316289322,1709424654784,-500.0,0.00021479,2]
[316289323,1709424654794,-500.0,0.00021479,2]
[316289324,1709424654802,-500.0,0.00021479,2]
[316289325,1709424654811,-500.0,0.00021479,2]
[316289326,1709424654820,-500.0,0.00021479,2]
[316289327,1709424654829,-500.0,0.00021479,2]
[316289328,1709424654838,-952.83,0.00021479,2]
[316289329,1709424654848,-926.18,0.00021479,2]
[316289330,1709424654859,-528.51897795,0.00021479,2]
[316289331,1709424654868,-543.38,0.00021479,2]
[316289332,1709424654877,-500.0,0.00021479,2]
[316289333,1709424654886,-500.0,0.00021479,2]
[316289334,1709424654895,-500.0,0.00021479,2]
[316289335,1709424654904,-301.88,0.00021479,2]
[316289336,1709424654913,-500.0,0.00021479,2]
[316289337,1709424654922,-500.0,0.00021479,2]
[316289338,1709424654933,-500.0,0.00021479,2]
[316289339,1709424654942,-1057.45,0.00021479,2]
[316289340,1709424654951,-500.0,0.00021479,2]
[316289341,1709424654960,-500.0,0.00021479,2]
[316289342,1709424654969,-500.0,0.00021479,2]
[316289343,1709424654978,-1753.44,0.00021479,2]
[316289344,1709424654987,-500.0,0.00021479,2]
[316289345,1709424654996,-500.0,0.00021479,2]
[316289346,1709424655006,-500.0,0.00021479,2]
[316289347,1709424655015,-500.0,0.00021479,2]
[316289348,1709424655024,-500.0,0.00021479,2]
[316289349,1709424655033,-1046.31,0.00021479,2]
[316289350,1709424655042,-532.25140051,0.00021479,2]
[316289351,1709424655051,-500.0,0.00021479,2]
[316289352,1709424655060,-500.0,0.00021479,2]
[316289353,1709424655069,-5811.28,0.00021479,2]
[316289354,1709424655078,-500.0,0.00021479,2]
[316289355,1709424655087,-500.0,0.00021479,2]
[316289356,1709424655096,-500.0,0.00021479,2]
[316289357,1709424655105,-938.04,0.00021479,2]
[316289358,1709424655114,-1467.45,0.00021479,2]
[316289359,1709424655123,-500.0,0.00021479,2]
[316289360,1709424655132,-500.0,0.00021479,2]
[316289361,1709424655141,-500.0,0.00021479,2]
[316289362,1709424655149,-1210.32,0.00021479,2]
[316289363,1709424655159,-500.0,0.00021479,2]
[316289364,1709424655169,-500.0,0.00021479,2]
[316289365,1709424655178,-1614.95,0.00021479,2]
[316289366,1709424655188,-500.0,0.00021479,2]
[316289367,1709424655197,-500.0,0.00021479,2]
[316289368,1709424655206,-2899.5,0.00021479,2]
[316289369,1709424655216,-500.0,0.00021479,2]
[316289370,1709424655225,-500.0,0.00021479,2]
[316289371,1709424655234,-500.0,0.00021479,2]
[316289372,1709424655243,-500.0,0.00021479,2]
[316289373,1709424655252,-500.0,0.00021479,2]
[316289374,1709424655261,-848.36,0.00021479,2]
[316289375,1709424655270,-1193.91,0.00021479,2]
[316289376,1709424655279,-500.0,0.00021479,2]
[316289377,1709424655287,-500.0,0.00021479,2]
[316289378,1709424655296,-2939.72,0.00021479,2]
[316289379,1709424655305,-617.26,0.00021479,2]
[316289380,1709424655314,-500.0,0.00021479,2]
[316289381,1709424655323,-1244.0,0.00021479,2]
[316289382,1709424655332,-3491.64,0.00021479,2]
[316289383,1709424655341,-500.0,0.00021479,2]
[316289384,1709424655350,-943.02,0.00021479,2]
[316289385,1709424655360,-500.0,0.00021479,2]
[316289386,1709424655369,-500.0,0.00021479,2]
[316289387,1709424655377,-500.0,0.00021479,2]
[316289388,1709424655387,-1860.04,0.00021479,2]
[316289389,1709424655395,-1166.24,0.00021479,2]
[316289390,1709424655404,-545.21654519,0.00021479,2]
[316289391,1709424655413,-2576.56,0.00021479,2]
[316289392,1709424655422,-500.0,0.00021479,2]
[316289393,1709424655431,-1296.32,0.00021479,2]
[316289394,1709424655440,-500.0,0.00021479,2]
[316289395,1709424655448,-3884.31,0.00021479,2]
[316289396,1709424655457,-548.79,0.00021479,2]
[316289397,1709424655467,-2411.93,0.00021479,2]
[316289398,1709424655476,-500.0,0.00021479,2]
[316289399,1709424655485,-693.48,0.00021479,2]
[316289400,1709424655494,-500.0,0.00021479,2]
[316289401,1709424655504,-500.0,0.00021479,2]
[316289402,1709424655513,-500.0,0.00021479,2]
[316289403,1709424655522,-1379.37,0.00021479,2]
[316289404,1709424655531,-2402.77,0.00021479,2]
[316289405,1709424655540,-2887.15,0.00021479,2]
[316289406,1709424655549,-500.0,0.00021479,2]
[316289407,1709424655558,-500.0,0.00021479,2]
[316289408,1709424655568,-1128.47,0.00021479,2]
[316289409,1709424655577,-500.0,0.00021479,2]
[316289410,1709424655586,-829.15,0.00021479,2]
[316289411,1709424655595,-918.85,0.00021479,2]
[316289412,1709424655604,-500.0,0.00021479,2]
[316289413,1709424655614,-500.0,0.00021479,2]
[316289414,1709424655623,-736.28,0.00021479,2]
[316289415,1709424655632,-500.0,0.00021479,2]
[316289416,1709424655641,-1352.4,0.00021479,2]
[316289417,1709424655650,-1873.1,0.00021479,2]
[316289418,1709424655658,-1196.69,0.00021479,2]
[316289419,1709424655669,-8811.53,0.00021479,2]
[316289420,1709424655679,-500.0,0.00021479,2]
[316289421,1709424655690,-500.0,0.00021479,2]
[316289422,1709424655700,-3515.39,0.00021479,2]
[316289423,1709424655710,-500.0,0.00021479,2]
[316289424,1709424655720,-1014.33,0.00021479,2]
[316289425,1709424655730,-500.0,0.00021479,2]
[316289426,1709424655739,-1003.91,0.00021479,2]
[316289427,1709424655749,-500.0,0.00021479,2]
[316289428,1709424655758,-5260.88,0.00021479,2]
[316289429,1709424655769,-10978.73,0.00021479,2]
[316289430,1709424655779,-500.0,0.00021479,2]
[316289431,1709424655795,-35639.24,0.00021479,2]
[316289432,1709424655804,-500.0,0.00021479,2]
[316289433,1709424655813,-500.0,0.00021479,2]
[316289434,1709424655823,-886.02,0.00021479,2]
[316289435,1709424655833,-889.94,0.00021479,2]
[316289436,1709424655842,-8567.94,0.00021479,2]
[316289437,1709424655851,-500.0,0.00021479,2]
[316289438,1709424655860,-500.0,0.00021479,2]
[316289439,1709424655871,-500.0,0.00021479,2]
[316289440,1709424655880,-500.0,0.00021479,2]
[316289441,1709424655889,-547.76,0.00021479,2]
[316289442,1709424655898,-2948.94,0.00021479,2]
[316289443,1709424655907,-815.39,0.00021479,2]
[316289444,1709424655916,-500.0,0.00021479,2]
[316289445,1709424655926,-781.91,0.00021479,2]
[316289446,1709424655935,-811.62,0.00021479,2]
[316289447,1709424655944,-500.0,0.00021479,2]
[316289448,1709424655954,-2037.15,0.00021479,2]
[316289449,1709424655963,-3221.6,0.00021479,2]
[316289450,1709424655974,-500.0,0.00021479,2]
[316289451,1709424655983,-500.0,0.00021479,2]
[316289452,1709424655992,-844.55,0.00021479,2]
[316289453,1709424656002,-8861.21,0.00021479,2]
[316289454,1709424656010,-500.0,0.00021479,2]
[316289455,1709424656020,-1044.66,0.00021479,2]
[316289456,1709424656029,-500.0,0.00021479,2]
[316289457,1709424656038,-500.0,0.00021479,2]
[316289458,1709424656047,-2788.78,0.00021479,2]
[316289459,1709424656056,-500.0,0.00021479,2]
[316289460,1709424656066,-500.0,0.00021479,2]
[316289461,1709424656075,-500.0,0.00021479,2]
[316289462,1709424656084,-500.0,0.00021479,2]
[316289463,1709424656093,-500.0,0.00021479,2]
[316289464,1709424656102,-500.0,0.00021479,2]
[316289465,1709424656111,-971.4,0.00021479,2]
[316289466,1709424656121,-500.0,0.00021479,2]
[316289467,1709424656130,-2674.88,0.00021479,2]
[316289468,1709424656139,-500.0,0.00021479,2]
[316289469,1709424656148,-1543.32,0.00021479,2]
[316289470,1709424656157,-630.34,0.00021479,2]
[316289471,1709424656167,-500.0,0.00021479,2]
[316289472,1709424656176,-500.0,0.00021479,2]
[316289473,1709424656188,-1386.45,0.00021479,2]
[316289474,1709424656197,-806.43,0.00021479,2]
[316289475,1709424656206,-515.74,0.00021479,2]
[316289476,1709424656215,-894.53,0.00021479,2]
[316289477,1709424656224,-500.0,0.00021479,2]
[316289478,1709424656233,-500.0,0.00021479,2]
[316289479,1709424656243,-1019.65,0.00021479,2]
[316289480,1709424656253,-929.46,0.00021479,2]
[316289481,1709424656262,-500.0,0.00021479,2]
[316289482,1709424656272,-2576.66,0.00021479,2]
[316289483,1709424656282,-500.0,0.00021479,2]
[316289484,1709424656291,-500.0,0.00021479,2]
[316289485,1709424656301,-2054.18,0.00021479,2]
[316289486,1709424656310,-745.22,0.00021479,2]
[316289487,1709424656319,-2021.11,0.00021479,2]
[316289488,1709424656329,-1370.05,0.00021479,2]
[316289489,1709424656338,-500.0,0.00021479,2]
[316289490,1709424656347,-2439.91,0.00021479,2]
[316289491,1709424656356,-500.0,0.00021479,2]
[316289492,1709424656365,-500.0,0.00021479,2]
[316289493,1709424656375,-1203.96,0.00021479,2]
[316289494,1709424656384,-500.0,0.00021479,2]
[316289495,1709424656394,-500.0,0.00021479,2]
[316289496,1709424656404,-632.98,0.00021479,2]
[316289497,1709424656413,-3183.33,0.00021479,2]
[316289498,1709424656421,-2875.27,0.00021479,2]
[316289499,1709424656431,-902.1,0.00021479,2]
[316289500,1709424656440,-500.0,0.00021479,2]
[316289501,1709424656450,-1142.34,0.00021479,2]
[316289502,1709424656459,-500.0,0.00021479,2]
[316289503,1709424656468,-500.0,0.00021479,2]
[316289504,1709424656477,-9267.47,0.00021479,2]